fUSD/lending_fUSD_20240508
["ID","MTS","AMOUNT","RATE_DAILY","PERIOD"]
[326655746,1715202674597,-500.0,0.00027945,5]
[326655747,1715202674606,-500.0,0.00027945,5]
[326655748,1715202674616,-500.0,0.00027945,5]
[326655749,1715202674625,-500.0,0.00027945,5]
[326655750,1715202674635,-500.0,0.00027945,5]
[326655751,1715202674645,-500.0,0.00027945,5]
[326655752,1715202674654,-500.0,0.00027945,5]
[326655753,1715202674664,-500.0,0.00027945,5]
[326655754,1715202674674,-500.0,0.00027945,5]
[326655755,1715202674684,-500.0,0.00027945,5]
[326655756,1715202674695,-500.0,0.00027945,5]
[326655757,1715202674704,-500.0,0.00027945,5]
[326655758,1715202674714,-500.0,0.00027945,5]
[326655759,1715202674723,-560.65,0.00027945,5]
[326655760,1715202674733,-500.0,0.00027945,5]
[326655761,1715202674743,-500.0,0.00027945,5]
[326655762,1715202674752,-500.0,0.00027945,5]
[326655763,1715202674761,-500.0,0.00027945,5]
[326655764,1715202674771,-500.0,0.00027945,5]
[326655765,1715202674780,-500.0,0.00027945,5]
[326655766,1715202674789,-500.0,0.00027945,5]
[326655767,1715202674799,-500.0,0.00027945,5]
[326655768,1715202674808,-549.74,0.00027945,5]
[326655769,1715202674818,-500.0,0.00027945,5]
[326655770,1715202674828,-500.0,0.00027945,5]
[326655771,1715202674838,-500.0,0.00027945,5]
[326655772,1715202674847,-500.0,0.00027945,5]
[326655773,1715202674856,-500.0,0.00027945,5]
[326655774,1715202674866,-500.0,0.00027945,5]
[326655775,1715202674875,-500.0,0.00027945,5]
[326655776,1715202674885,-500.0,0.00027945,5]
[326655777,1715202674895,-256.06,0.00027945,5]
[326655778,1715202674906,-500.0,0.00027945,5]
[326655779,1715202674915,-249.89740791,0.00027945,5]
[326655780,1715202674926,-1698.66,0.00027945,5]
[326655781,1715202674935,-500.0,0.00027945,5]
[326655782,1715202674945,-500.0,0.00027945,5]
[326655783,1715202674955,-2418.63,0.00027945,5]
[326655784,1715202674965,-500.0,0.00027945,5]
[326655785,1715202674974,-500.0,0.00027945,5]
[326655786,1715202674985,-500.0,0.00027945,5]
[326655787,1715202674998,-500.0,0.00027945,5]
[326655788,1715202675008,-500.0,0.00027945,5]
[326655789,1715202675018,-500.0,0.00027945,5]
[326655790,1715202675028,-500.0,0.00027945,5]
[326655791,1715202675037,-500.0,0.00027945,5]
[326655792,1715202675048,-590.3083228,0.00027945,5]
[326655793,1715202675057,-500.0,0.00027945,5]
[326655794,1715202675073,-500.0,0.00027945,5]
[326655795,1715202675083,-500.0,0.00027945,5]
[326655796,1715202675093,-500.0,0.00027945,5]
[326655797,1715202675102,-500.0,0.00027945,5]
[326655798,1715202675112,-500.0,0.00027945,5]
[326655799,1715202675121,-500.0,0.00027945,5]
[326655800,1715202675130,-500.0,0.00027945,5]
[326655801,1715202675139,-500.0,0.00027945,5]
[326655802,1715202675148,-500.0,0.00027945,5]
[326655803,1715202675158,-500.0,0.00027945,5]
[326655804,1715202675167,-500.0,0.00027945,5]
[326655805,1715202675179,-545.27,0.00027945,5]
[326655806,1715202675189,-500.0,0.00027945,5]
[326655807,1715202675200,-500.0,0.00027945,5]
[326655808,1715202675209,-506.89290904,0.00027945,5]
[326655809,1715202675219,-295.6417852,0.00027945,2]
[326655810,1715202675229,-500.0,0.00027945,5]
[326655811,1715202675238,-1725.95,0.00027945,5]
[326655812,1715202675248,-500.0,0.00027945,5]
[326655813,1715202675258,-266.91,0.00027945,5]
[326655814,1715202675268,-500.0,0.00027945,5]
[326655815,1715202675278,-734.3,0.00027945,5]
[326655816,1715202675287,-5124.15,0.00027945,5]
[326655817,1715202675297,-500.0,0.00027945,5]
[326655818,1715202675307,-500.0,0.00027945,5]
[326655819,1715202675317,-500.0,0.00027945,5]
[326655820,1715202675327,-500.0,0.00027945,5]
[326655821,1715202675336,-500.0,0.00027945,5]
[326655822,1715202675346,-500.0,0.00027945,5]
[326655823,1715202675361,-500.0,0.00027945,5]
[326655824,1715202675370,-761.29,0.00027945,5]
[326655825,1715202675380,-500.0,0.00027945,5]
[326655826,1715202675390,-500.0,0.00027945,5]
[326655827,1715202675403,-500.0,0.00027945,5]
[326655828,1715202675413,-500.0,0.00027945,5]
[326655829,1715202675423,-911.92,0.00027945,5]
[326655830,1715202675432,-500.0,0.00027945,5]
[326655831,1715202675443,-1066.66,0.00027945,5]
[326655832,1715202675455,-500.0,0.00027945,5]
[326655833,1715202675465,-500.0,0.00027945,5]
[326655834,1715202675474,-500.0,0.00027945,5]
[326655835,1715202675484,-500.0,0.00027945,5]
[326655836,1715202675493,-500.0,0.00027945,5]
[326655837,1715202675503,-500.0,0.00027945,5]
[326655838,1715202675513,-500.0,0.00027945,5]
[326655839,1715202675523,-500.0,0.00027945,5]
[326655840,1715202675533,-500.0,0.00027945,5]
[326655841,1715202675542,-500.0,0.00027945,5]
[326655842,1715202675552,-500.0,0.00027945,5]
[326655843,1715202675562,-500.0,0.00027945,5]
[326655844,1715202675572,-500.0,0.00027945,5]
[326655845,1715202675582,-500.0,0.00027945,5]
[326655846,1715202675592,-500.0,0.00027945,5]
[326655847,1715202675601,-593.87,0.00027945,5]
[326655848,1715202675611,-500.0,0.00027945,5]
[326655849,1715202675621,-1994.9,0.00027945,5]
[326655850,1715202675633,-500.0,0.00027945,5]
[326655851,1715202675646,-500.0,0.00027945,5]
[326655852,1715202675656,-500.0,0.00027945,5]
[326655853,1715202675666,-500.0,0.00027945,5]
[326655854,1715202675675,-500.0,0.00027945,5]
[326655855,1715202675685,-1352.28,0.00027945,5]
[326655856,1715202675695,-599.2,0.00027945,5]
[326655857,1715202675704,-1657.57,0.00027945,5]
[326655858,1715202675714,-500.0,0.00027945,5]
[326655859,1715202675723,-500.0,0.00027945,5]
[326655860,1715202675732,-500.0,0.00027945,5]
[326655861,1715202675742,-500.0,0.00027945,5]
[326655862,1715202675752,-500.0,0.00027945,5]
[326655863,1715202675761,-500.0,0.00027945,5]
[326655864,1715202675772,-500.0,0.00027945,5]
[326655865,1715202675782,-500.0,0.00027945,5]
[326655866,1715202675791,-500.0,0.00027945,5]
[326655867,1715202675800,-523.27,0.00027945,5]
[326655868,1715202675810,-500.0,0.00027945,5]
[326655869,1715202675819,-500.0,0.00027945,5]
[326655870,1715202675829,-500.0,0.00027945,5]
[326655871,1715202675838,-500.0,0.00027945,5]
[326655872,1715202675848,-1778.43,0.00027945,5]
[326655873,1715202675858,-851.85,0.00027945,5]
[326655874,1715202675867,-943.87,0.00027945,5]
[326655875,1715202675877,-500.0,0.00027945,5]
[326655876,1715202675887,-500.0,0.00027945,5]
[326655877,1715202675896,-500.0,0.00027945,5]
[326655878,1715202675905,-500.0,0.00027945,5]
[326655879,1715202675915,-500.0,0.00027945,5]
[326655880,1715202675925,-500.0,0.00027945,5]
[326655881,1715202675934,-500.0,0.00027945,5]
[326655882,1715202675944,-500.0,0.00027945,5]
[326655883,1715202675954,-500.0,0.00027945,5]
[326655884,1715202675963,-2510.11,0.00027945,5]
[326655885,1715202676081,-15785.98,0.00027945,5]
[326655886,1715202676091,-500.0,0.00027945,5]
[326655887,1715202676101,-2113.51,0.00027945,5]
[326655888,1715202676110,-500.0,0.00027945,5]
[326655889,1715202676120,-500.0,0.00027945,5]
[326655890,1715202676129,-500.0,0.00027945,5]
[326655891,1715202676138,-500.0,0.00027945,5]
[326655892,1715202676148,-500.0,0.00027945,5]
[326655893,1715202676157,-500.0,0.00027945,5]
[326655894,1715202676167,-500.0,0.00027945,5]
[326655895,1715202676176,-150.0,0.00027945,5]
[326655896,1715202676185,-500.0,0.00027945,5]
[326655897,1715202676194,-500.0,0.00027945,5]
[326655898,1715202676203,-658.06,0.00027945,5]
[326655899,1715202676213,-500.0,0.00027945,5]
[326655900,1715202676222,-9840.91,0.00027945,5]
[326655901,1715202676231,-500.0,0.00027945,5]
[326655902,1715202676240,-559.5,0.00027945,5]
[326655903,1715202676249,-500.0,0.00027945,5]
[326655904,1715202676259,-500.0,0.00027945,5]
[326655905,1715202676268,-500.0,0.00027945,5]
[326655906,1715202676278,-197.79,0.00027945,5]
[326655907,1715202676290,-500.0,0.00027945,5]
[326655908,1715202676302,-500.0,0.00027945,5]
[326655909,1715202676313,-1696.25,0.00027945,5]
[326655910,1715202676324,-500.0,0.00027945,5]
[326655911,1715202676334,-1603.84,0.00027945,5]
[326655912,1715202676344,-500.0,0.00027945,5]
[326655913,1715202676354,-500.0,0.00027945,5]
[326655914,1715202676367,-500.0,0.00027945,5]
[326655915,1715202676377,-510.17,0.00027945,5]
[326655916,1715202676387,-500.0,0.00027945,5]
[326655917,1715202676396,-500.0,0.00027945,5]
[326655918,1715202676408,-500.0,0.00027945,5]
[326655919,1715202676417,-1080.78,0.00027945,5]
[326655920,1715202676427,-500.0,0.00027945,5]
[326655921,1715202676436,-500.0,0.00027945,5]
[326655922,1715202676447,-531.49,0.00027945,5]
[326655923,1715202676457,-500.0,0.00027945,5]
[326655924,1715202676466,-500.0,0.00027945,5]
[326655925,1715202676476,-500.0,0.00027945,5]
[326655926,1715202676485,-1251.18,0.00027945,5]
[326655927,1715202676494,-500.0,0.00027945,5]
[326655928,1715202676503,-500.0,0.00027945,5]
[326655929,1715202676513,-500.0,0.00027945,5]
[326655930,1715202676523,-500.0,0.00027945,5]
[326655931,1715202676532,-500.0,0.00027945,5]
[326655932,1715202676542,-1243.74,0.00027945,5]
[326655933,1715202676551,-500.0,0.00027945,5]
[326655934,1715202676560,-500.0,0.00027945,5]
[326655935,1715202676570,-500.0,0.00027945,5]
[326655936,1715202676579,-1041.74,0.00027945,5]
[326655937,1715202676589,-1090.06,0.00027945,5]
[326655938,1715202676599,-500.0,0.00027945,5]
[326655939,1715202676608,-500.0,0.00027945,5]
[326655940,1715202676618,-500.0,0.00027945,5]
[326655941,1715202676628,-510.76173379,0.00027945,5]
[326655942,1715202676638,-500.0,0.00027945,5]
[326655943,1715202676647,-500.0,0.00027945,5]
[326655944,1715202676657,-561.35,0.00027945,5]
[326655945,1715202676666,-500.0,0.00027945,5]
[326655946,1715202676677,-521.28,0.00027945,5]
[326655947,1715202676687,-500.0,0.00027945,5]
[326655948,1715202676697,-500.0,0.00027945,5]
[326655949,1715202676707,-500.0,0.00027945,5]
[326655950,1715202676716,-500.0,0.00027945,5]
[326655951,1715202676726,-500.0,0.00027945,5]
[326655952,1715202676735,-500.0,0.00027945,5]
[326655953,1715202676744,-500.0,0.00027945,5]
[326655954,1715202676754,-546.32,0.00027945,5]
[326655955,1715202676763,-500.0,0.00027945,5]
[326655956,1715202676773,-1588.46,0.00027945,5]
[326655957,1715202676783,-500.0,0.00027945,5]
[326655958,1715202676793,-3562.07,0.00027945,5]
[326655959,1715202676803,-500.0,0.00027945,5]
[326655960,1715202676812,-500.0,0.00027945,5]
[326655961,1715202676822,-500.0,0.00027945,5]
[326655962,1715202676832,-500.0,0.00027945,5]
[326655963,1715202676841,-500.0,0.00027945,5]
[326655964,1715202676852,-500.0,0.00027945,5]
[326655965,1715202676861,-500.0,0.00027945,5]
[326655966,1715202676870,-1521.55,0.00027945,5]
[326655967,1715202676880,-500.0,0.00027945,5]
[326655968,1715202676889,-600.99,0.00027945,5]
[326655969,1715202676898,-628.96,0.00027945,5]
[326655970,1715202676908,-4304.0,0.00027945,5]
[326655971,1715202676918,-500.0,0.00027945,5]
[326655972,1715202676927,-500.0,0.00027945,5]
[326655973,1715202676936,-500.0,0.00027945,5]
[326655974,1715202676948,-500.0,0.00027945,5]
[326655975,1715202676957,-500.0,0.00027945,5]
[326655976,1715202676967,-504.58,0.00027945,5]
[326655977,1715202676977,-500.0,0.00027945,5]
[326655978,1715202676986,-852.84,0.00027945,5]
[326655979,1715202676996,-507.61296246,0.00027945,5]
[326655980,1715202677006,-500.0,0.00027945,5]
[326655981,1715202677015,-640.37,0.00027945,5]
[326655982,1715202677024,-500.0,0.00027945,5]
[326655983,1715202677033,-500.0,0.00027945,5]
[326655984,1715202677043,-500.0,0.00027945,5]
[326655985,1715202677054,-500.0,0.00027945,5]
[326655986,1715202677065,-832.45,0.00027945,5]
[326655987,1715202677074,-257.91,0.00027945,5]
[326655988,1715202677084,-613.97,0.00027945,5]
[326655989,1715202677094,-266.54,0.00027945,5]
[326655990,1715202677104,-500.0,0.00027945,5]
[326655991,1715202677113,-182.42,0.00027945,5]
[326655992,1715202677123,-500.0,0.00027945,5]
[326655993,1715202677132,-500.0,0.00027945,5]
[326655994,1715202677141,-500.0,0.00027945,5]
[326655995,1715202677151,-500.0,0.00027945,5]
[326655996,1715202677160,-183.6,0.00027945,5]
[326655997,1715202677170,-500.0,0.00027945,5]
[326655998,1715202677180,-500.0,0.00027945,5]
[326655999,1715202677189,-500.0,0.00027945,5]
[326656000,1715202677199,-500.0,0.00027945,5]
[326656001,1715202677209,-500.0,0.00027945,5]
[326656002,1715202677219,-500.0,0.00027945,5]
[326656003,1715202677228,-500.0,0.00027945,5]
[326656004,1715202677238,-409.79,0.00027945,5]
[326656005,1715202677247,-500.0,0.00027945,5]
[326656006,1715202677257,-500.0,0.00027945,5]
[326656007,1715202677266,-497.89,0.00027945,5]
[326656008,1715202677276,-500.0,0.00027945,5]
[326656009,1715202677285,-4352.62,0.00027945,5]
[326656010,1715202677295,-500.0,0.00027945,5]
[326656011,1715202677305,-625.9,0.00027945,5]
[326656012,1715202677315,-500.0,0.00027945,5]
[326656013,1715202677324,-645.47,0.00027945,5]
[326656014,1715202677334,-8622.61,0.00027945,5]
[326656015,1715202677343,-500.0,0.00027945,5]
[326656016,1715202677354,-500.0,0.00027945,5]
[326656017,1715202677367,-962.8,0.00027945,5]
[326656018,1715202677377,-327.87950345,0.00027945,5]
[326656019,1715202677386,-753.69,0.00027945,5]
[326656020,1715202677397,-500.0,0.00027945,5]
[326656021,1715202677407,-500.0,0.00027945,5]
[326656022,1715202677416,-500.0,0.00027945,5]
[326656023,1715202677425,-500.0,0.00027945,5]
[326656024,1715202677435,-500.0,0.00027945,5]
[326656025,1715202677444,-500.0,0.00027945,5]
[326656026,1715202677455,-250.36,0.00027945,5]
[326656027,1715202677463,-500.0,0.00027945,5]
[326656028,1715202677472,-500.0,0.00027945,5]
[326656029,1715202677481,-500.0,0.00027945,5]
[326656030,1715202677490,-566.11,0.00027945,5]
[326656031,1715202677500,-500.0,0.00027945,5]
[326656032,1715202677509,-500.0,0.00027945,5]
[326656033,1715202677518,-500.0,0.00027945,5]
[326656034,1715202677527,-500.0,0.00027945,5]
[326656035,1715202677536,-500.0,0.00027945,5]
[326656036,1715202677545,-500.0,0.00027945,5]
[326656037,1715202677554,-500.0,0.00027945,5]
[326656038,1715202677563,-2595.64,0.00027945,5]
[326656039,1715202677573,-500.0,0.00027945,5]
[326656040,1715202677582,-506.11084056,0.00027945,5]
[326656041,1715202677591,-609.91,0.00027945,5]
[326656042,1715202677600,-500.0,0.00027945,5]
[326656043,1715202677610,-500.0,0.00027945,5]
[326656044,1715202677619,-500.0,0.00027945,5]
[326656045,1715202677628,-500.0,0.00027945,5]
[326656046,1715202677638,-545.36,0.00027945,5]
[326656047,1715202677647,-255.02387826,0.00027945,5]
[326656048,1715202677656,-346.73,0.00027945,5]
[326656049,1715202677665,-500.0,0.00027945,5]
[326656050,1715202677675,-500.0,0.00027945,5]
[326656051,1715202677684,-500.0,0.00027945,5]
[326656052,1715202677693,-500.0,0.00027945,5]
[326656053,1715202677706,-982.1,0.00027945,5]
[326656054,1715202677725,-500.0,0.00027945,5]
[326656055,1715202677736,-500.0,0.00027945,5]
[326656056,1715202677745,-500.0,0.00027945,5]
[326656057,1715202677754,-297.87,0.00027945,5]
[326656058,1715202677763,-500.0,0.00027945,5]
[326656059,1715202677774,-500.0,0.00027945,5]
[326656060,1715202677784,-640.68,0.00027945,5]
[326656061,1715202677793,-500.0,0.00027945,5]
[326656062,1715202677803,-500.0,0.00027945,5]
[326656063,1715202677812,-500.0,0.00027945,5]
[326656064,1715202677822,-500.0,0.00027945,5]
[326656065,1715202677831,-1016.9,0.00027945,5]
[326656066,1715202677840,-500.0,0.00027945,5]
[326656067,1715202677853,-500.0,0.00027945,5]
[326656068,1715202677873,-1557.02,0.00027945,5]
[326656069,1715202677883,-922.38,0.00027945,5]
[326656070,1715202677892,-500.0,0.00027945,5]
[326656071,1715202677902,-626.38,0.00027945,5]
[326656072,1715202677911,-500.0,0.00027945,5]
[326656073,1715202677920,-500.0,0.00027945,5]
[326656074,1715202677930,-1012.0,0.00027945,5]
[326656075,1715202677939,-1984.8,0.00027945,5]
[326656076,1715202677950,-500.0,0.00027945,5]
[326656077,1715202677959,-500.0,0.00027945,5]
[326656078,1715202677969,-500.0,0.00027945,5]
[326656079,1715202677979,-500.0,0.00027945,5]
[326656080,1715202677988,-864.17,0.00027945,5]
[326656081,1715202677997,-500.0,0.00027945,5]
[326656082,1715202678007,-649.46,0.00027945,5]
[326656083,1715202678017,-500.0,0.00027945,5]
[326656084,1715202678026,-500.0,0.00027945,5]
[326656085,1715202678036,-500.0,0.00027945,5]
[326656086,1715202678045,-500.0,0.00027945,5]
[326656087,1715202678055,-500.0,0.00027945,5]
[326656088,1715202678064,-500.0,0.00027945,5]
[326656089,1715202678073,-500.0,0.00027945,5]
[326656090,1715202678083,-500.0,0.00027945,5]
[326656091,1715202678092,-500.0,0.00027945,5]
[326656092,1715202678102,-696.87,0.00027945,5]
[326656093,1715202678111,-680.38,0.00027945,5]
[326656094,1715202678121,-500.0,0.00027945,5]
[326656095,1715202678130,-3942.24,0.00027945,5]
[326656096,1715202678139,-1414.16,0.00027945,5]
[326656097,1715202678148,-500.0,0.00027945,5]
[326656098,1715202678259,-500.0,0.00027945,5]
[326656099,1715202678269,-702.38,0.00027945,5]
[326656100,1715202678279,-588.95,0.00027945,5]
[326656101,1715202678289,-500.0,0.00027945,5]
[326656102,1715202678299,-500.0,0.00027945,5]
[326656103,1715202678308,-500.0,0.00027945,5]
[326656104,1715202678318,-500.0,0.00027945,5]
[326656105,1715202678327,-567.04,0.00027945,5]
[326656106,1715202678337,-500.0,0.00027945,5]
[326656107,1715202678347,-510.10649987,0.00027945,5]
[326656108,1715202678360,-560.89,0.00027945,5]
[326656109,1715202678370,-500.0,0.00027945,5]
[326656110,1715202678380,-1600.2,0.00027945,5]
[326656111,1715202678390,-614.59,0.00027945,5]
[326656112,1715202678403,-500.0,0.00027945,5]
[326656113,1715202678413,-1972.14,0.00027945,5]
[326656114,1715202678422,-2948.94,0.00027945,5]
[326656115,1715202678432,-500.0,0.00027945,5]
[326656116,1715202678443,-574.19,0.00027945,5]
[326656117,1715202678454,-735.93,0.00027945,5]
[326656118,1715202678464,-500.0,0.00027945,5]
[326656119,1715202678473,-2090.66,0.00027945,5]
[326656120,1715202678483,-500.0,0.00027945,5]
[326656121,1715202678492,-2200.08,0.00027945,5]
[326656122,1715202678502,-2952.66,0.00027945,5]
[326656123,1715202678513,-500.0,0.00027945,5]
[326656124,1715202678523,-500.0,0.00027945,5]
[326656125,1715202678534,-500.0,0.00027945,5]
[326656126,1715202678544,-500.0,0.00027945,5]
[326656127,1715202678554,-500.0,0.00027945,5]
[326656128,1715202678564,-500.0,0.00027945,5]
[326656129,1715202678575,-580.64,0.00027945,5]
[326656130,1715202678584,-180.79,0.00027945,5]
[326656131,1715202678594,-500.0,0.00027945,5]
[326656132,1715202678605,-500.0,0.00027945,5]
[326656133,1715202678614,-500.0,0.00027945,5]
[326656134,1715202678624,-500.0,0.00027945,5]
[326656135,1715202678634,-500.0,0.00027945,5]
[326656136,1715202678643,-800.0,0.0002797,2]
[326656137,1715202678653,-74026.48354397,0.00027973,3]
[326656138,1715202678663,-298.70861406,0.00027981,2]
[326656139,1715202678673,-302.0,0.00027991,2]
[326656140,1715202678683,-543.0,0.00027991,2]
[326656141,1715202678692,-366.26415354,0.00027998,2]
[326656142,1715202678702,-155.0,0.00027998,2]
[326656143,1715202678712,-155.61637897,0.00027998,2]
[326656144,1715202678722,-1500.0,0.00028,2]
[326656145,1715202678732,-1500.0,0.00028,2]
[326656146,1715202678741,-1500.0,0.00028,2]
[326656147,1715202678751,-1500.0,0.00028,2]
[326656148,1715202678760,-1500.0,0.00028,2]
[326656149,1715202678769,-1500.0,0.00028,2]
[326656150,1715202678779,-1741.02,0.00028,2]
[326656151,1715202678788,-500.0,0.00028,2]
[326656152,1715202678798,-900.0,0.00028,29]
[326656153,1715202678808,-2994.3914868,0.00028,29]
[326656154,1715202678817,-10000.0,0.00028,30]
[326656155,1715202678827,-1300.0,0.00028,3]
[326656156,1715202678835,-969.0,0.00028,12]
[326656157,1715202678845,-155.0,0.00028,2]
[326656158,1715202678854,-159.12946057,0.00028094,2]
[326656159,1715202678864,-1592.3857574,0.00028111,45]
[326656160,1715202678873,-150.0,0.00028118,2]
[326656161,1715202678883,-677.0,0.0002816,2]
[326656162,1715202678892,-533.0,0.0002816,2]
[326656163,1715202678902,-446.31244095,0.00028267,2]
[326656164,1715202678911,-255.16,0.000284,2]
[326656165,1715202678920,-155.41,0.000284,2]
[326656166,1715202678929,-212.32,0.000284,2]
[326656167,1715202678938,-201.0,0.0002841,2]
[326656168,1715202678948,-202.0,0.0002841,2]
[326656169,1715202678958,-157.050905,0.00028448,18]
[326656170,1715202678967,-677.0,0.0002845,2]
[326656171,1715202678976,-533.0,0.0002845,2]
[326656172,1715202678986,-508.30682562,0.00028458,2]
[326656173,1715202678995,-7000.0,0.00028463,7]
[326656174,1715202679004,-700.0,0.0002847,2]
[326656175,1715202679014,-700.0,0.0002847,2]
[326656176,1715202679023,-2339.18,0.00028493,5]
[326656177,1715202679032,-365.1,0.00028493,5]
[326656178,1715202679042,-500.0,0.00028493,2]
[326656179,1715202679051,-255.46,0.00028493,5]
[326656180,1715202679060,-500.0,0.00028493,5]
[326656181,1715202679069,-500.0,0.00028493,5]
[326656182,1715202679079,-500.0,0.00028493,5]
[326656183,1715202679088,-500.0,0.00028493,5]
[326656184,1715202679098,-500.0,0.00028493,5]
[326656185,1715202679107,-518.32,0.00028493,5]
[326656186,1715202679116,-500.0,0.00028493,5]
[326656187,1715202679125,-500.0,0.00028493,5]
[326656188,1715202679134,-500.0,0.00028493,5]
[326656189,1715202679144,-520.71,0.00028493,5]
[326656190,1715202679153,-500.0,0.00028493,5]
[326656191,1715202679162,-500.0,0.00028493,5]
[326656192,1715202679172,-500.0,0.00028493,5]
[326656193,1715202679182,-500.0,0.00028493,5]
[326656194,1715202679191,-500.0,0.00028493,5]
[326656195,1715202679203,-500.0,0.00028493,5]
[326656196,1715202679213,-609.39,0.00028493,5]
[326656197,1715202679222,-500.0,0.00028493,5]
[326656198,1715202679231,-257.3,0.00028493,5]
[326656199,1715202679241,-448.29,0.00028493,5]
[326656200,1715202679251,-500.0,0.00028493,5]
[326656201,1715202679260,-500.0,0.00028493,5]
[326656202,1715202679270,-479.44,0.00028493,5]
[326656203,1715202679279,-409.55,0.00028493,5]
[326656204,1715202679289,-500.0,0.00028493,5]
[326656205,1715202679298,-500.0,0.00028493,5]
[326656206,1715202679308,-500.0,0.00028493,5]
[326656207,1715202679317,-500.0,0.00028493,5]
[326656208,1715202679327,-500.0,0.00028493,5]
[326656209,1715202679336,-500.0,0.00028493,5]
[326656210,1715202679346,-500.0,0.00028493,5]
[326656211,1715202679358,-500.0,0.00028493,5]
[326656212,1715202679368,-227.21,0.00028493,5]
[326656213,1715202679377,-437.75,0.00028493,5]
[326656214,1715202679387,-500.0,0.00028493,5]
[326656215,1715202679396,-553.87,0.00028493,5]
[326656216,1715202679410,-500.0,0.00028493,5]
[326656217,1715202679420,-500.0,0.00028493,5]
[326656218,1715202679429,-500.0,0.00028493,5]
[326656219,1715202679441,-500.0,0.00028493,5]
[326656220,1715202679450,-500.0,0.00028493,5]
[326656221,1715202679459,-500.0,0.00028493,5]
[326656222,1715202679468,-500.0,0.00028493,5]
[326656223,1715202679478,-500.0,0.00028493,5]
[326656224,1715202679487,-500.0,0.00028493,5]
[326656225,1715202679496,-410.68516482,0.00028493,5]
[326656226,1715202679506,-500.0,0.00028493,5]
[326656227,1715202679515,-476.98,0.00028493,5]
[326656228,1715202679524,-500.0,0.00028493,5]
[326656229,1715202679533,-500.0,0.00028493,5]
[326656230,1715202679542,-251.0,0.00028493,5]
[326656231,1715202679552,-285.45,0.00028493,5]
[326656232,1715202679561,-500.0,0.00028493,5]
[326656233,1715202679570,-500.0,0.00028493,5]
[326656234,1715202679579,-500.0,0.00028493,5]
[326656235,1715202679589,-347.67,0.00028493,5]
[326656236,1715202679598,-152.52,0.00028493,5]
[326656237,1715202679607,-390.02,0.00028493,5]
[326656238,1715202679616,-500.0,0.00028493,5]
[326656239,1715202679626,-500.0,0.00028493,5]
[326656240,1715202679635,-500.0,0.00028493,5]
[326656241,1715202679644,-500.0,0.00028493,5]
[326656242,1715202679653,-647.2646153,0.00028493,5]
[326656243,1715202679662,-500.0,0.00028493,5]
[326656244,1715202679671,-500.0,0.00028493,5]
[326656245,1715202679680,-500.0,0.00028493,5]